Workbook

Sheet NO
A1: Office 2013 Class #40: Excel Basics 22:
A2: Excel’s Golden Rule
A3: If a formula input can change, put it into a cell and refer to it with a cell reference.
A4: If it will not change, you can type it into a formula.
K5: Okay to type formula inputs into formulas:
A6: Employee | B6: Dependents | C6: Hourly Wage | D6: Hours Worked For 2 Weeks | E6: Gross Pay | F6: Federal Tax | G6: State Tax | H6: Overall Tax Rate | I6: Net Pay | K6: Yearly Expense | L6: 5000
A7: Jerald Lucas | B7: 1 | C7: 22 | D7: 66.74 | E7: =C7*D7 -> 1468.28 | F7: =(E7-25.15*B7)*0.2 -> 288.626 | G7: =E7*0.05 -> 73.414 | H7: =SUM(F7:G7)/E7 -> 0.2465742229 | I7: =E7-SUM(F7:G7) -> 1106.24 | K7: Monthly Expense | L7: =L6/12 -> 416.6666667
A8: Wilma Frank | B8: 3 | C8: 29.59 | D8: 45.5 | E8: =C8*D8 -> 1346.345 | F8: =(E8-25.15*B8)*0.2 -> 254.179 | G8: =E8*0.05 -> 67.31725 | H8: =SUM(F8:G8)/E8 -> 0.2387918773 | I8: =E8-SUM(F8:G8) -> 1024.84875
A9: Tammy Rodgers | B9: 4 | C9: 22.21 | D9: 48.46 | E9: 1076.2966 | F9: 195.13932 | G9: 53.81483 | H9: 0.2313062682 | I9: 827.34245 | K9: Time In | L9: 08:00:00
A10: Bradley Bush | B10: 2 | C10: 28.06 | D10: 70.96 | E10: 1991.1376 | F10: 388.16752 | G10: 99.55688 | H10: 0.2449476119 | I10: 1503.4132 | K10: Time Out | L10: 14:00:00
A11: Justin Gonzales | B11: 3 | C11: 20.11 | D11: 51.52 | E11: 1036.0672 | F11: 192.12344 | G11: 51.80336 | H11: 0.2354353077 | I11: 792.1404 | K11: Hours Worked | L11: =(L10-L9)*24 -> 6
A12: Rodney Nguyen | B12: 4 | C12: 24.02 | D12: 48.53 | E12: 1165.6906 | F12: 213.01812 | G12: 58.28453 | H12: 0.2327398454 | I12: 894.38795
A13: Marco Hamilton | B13: 3 | C13: 23.8 | D13: 49.08 | E13: 1168.104 | F13: 218.5308 | G13: 58.4052 | H13: 0.2370816297 | I13: 891.168
A14: Connie Bowman | B14: 2 | C14: 23.25 | D14: 64.02 | E14: 1488.465 | F14: 287.633 | G14: 74.42325 | H14: 0.2432413594 | I14: 1126.40875
A15: Donald Jacobs | B15: 4 | C15: 22.06 | D15: 56.13 | E15: 1238.2278 | F15: 227.52556 | G15: 61.91139 | H15: 0.2337509705 | I15: 948.79085
A16: Total | D16: =SUM(D7:D15) -> 500.94 | E16: 11978.6138 | F16: 2264.94276 | G16: 598.93069 | I16: 9114.74035
A18: 1) If you are multiplying and dividing decimals AND | F18: Assumption Table (Formula Inputs)
A19: using formula result in subsequent formulas, you must use ROUND. | F19: Fed Tax Rate | G19: State Tax Rate
A20: 2) If a formula input can change, | F20: 0.2 | G20: 0.05
A21: put it in cell and refer to it with cell reference. | F21: Exemption amount
F22: 25.15

Sheet SimilarToHWExcelProject2
A1: Employee | B1: Dependents | C1: Hourly Wage | D1: Hours Worked For 2 Weeks | E1: Gross Pay | F1: Federal Tax | G1: State Tax | H1: Overall Tax Rate | I1: Net Pay
A2: Jerald Lucas | B2: 1 | C2: 22 | D2: 66.74 | H2: =IF(COUNT(E2:G2)=3,SUM(F2:G2)/E2,"") ->  | I2: =E2-SUM(F2:G2) -> 0
A3: Wilma Frank | B3: 3 | C3: 29.59 | D3: 45.5 | H3: =IF(COUNT(E3:G3)=3,SUM(F3:G3)/E3,"") ->  | I3: =E3-SUM(F3:G3) -> 0
A4: Tammy Rodgers | B4: 4 | C4: 22.21 | D4: 48.46 | I4: 0
A5: Bradley Bush | B5: 2 | C5: 28.06 | D5: 70.96 | I5: 0
A6: Justin Gonzales | B6: 3 | C6: 20.11 | D6: 51.52 | I6: 0
A7: Rodney Nguyen | B7: 4 | C7: 24.02 | D7: 48.53 | I7: 0
A8: Marco Hamilton | B8: 3 | C8: 23.8 | D8: 49.08 | I8: 0
A9: Connie Bowman | B9: 2 | C9: 23.25 | D9: 64.02 | I9: 0
A10: Donald Jacobs | B10: 4 | C10: 22.06 | D10: 56.13 | I10: 0
A11: Total | D11: =SUM(D2:D10) -> 500.94 | E11: 0 | F11: 0 | G11: 0 | I11: =SUM(I2:I10) -> 0
F13: Assumption Table (Formula Inputs)
F14: Fed Tax Rate | G14: State Tax Rate
F15: 0.2 | G15: 0.05
F16: Exemption amount
F17: 25.15

Sheet SimilarToHWExcelProject2 (an)
A1: Employee | B1: Dependents | C1: Hourly Wage | D1: Hours Worked For 2 Weeks | E1: Gross Pay | F1: Federal Tax | G1: State Tax | H1: Overall Tax Rate | I1: Net Pay
A2: Jerald Lucas | B2: 1 | C2: 22 | D2: 66.74 | E2: =ROUND(D2*C2,2) -> 1468.28 | F2: =ROUND((E2-B2*$F$17)*$F$15,2) -> 288.63 | G2: =ROUND(E2*$G$15,2) -> 73.41 | H2: =SUM(F2:G2)/E2 -> 0.2465742229 | I2: =E2-SUM(F2:G2) -> 1106.24
A3: Wilma Frank | B3: 3 | C3: 29.59 | D3: 45.5 | E3: =ROUND(D3*C3,2) -> 1346.35 | F3: 254.18 | G3: 67.32 | H3: =SUM(F3:G3)/E3 -> 0.2387937758 | I3: =E3-SUM(F3:G3) -> 1024.85
A4: Tammy Rodgers | B4: 4 | C4: 22.21 | D4: 48.46 | E4: 1076.3 | F4: 195.14 | G4: 53.82 | H4: 0.2313109728 | I4: 827.34
A5: Bradley Bush | B5: 2 | C5: 28.06 | D5: 70.96 | E5: 1991.14 | F5: 388.17 | G5: 99.56 | H5: 0.2449501291 | I5: 1503.41
A6: Justin Gonzales | B6: 3 | C6: 20.11 | D6: 51.52 | E6: 1036.07 | F6: 192.12 | G6: 51.8 | H6: 0.2354281081 | I6: 792.15
A7: Rodney Nguyen | B7: 4 | C7: 24.02 | D7: 48.53 | E7: 1165.69 | F7: 213.02 | G7: 58.28 | H7: 0.2327376918 | I7: 894.39
A8: Marco Hamilton | B8: 3 | C8: 23.8 | D8: 49.08 | E8: 1168.1 | F8: 218.53 | G8: 58.41 | H8: 0.2370858659 | I8: 891.16
A9: Connie Bowman | B9: 2 | C9: 23.25 | D9: 64.02 | E9: 1488.47 | F9: 287.63 | G9: 74.42 | H9: 0.2432363434 | I9: 1126.42
A10: Donald Jacobs | B10: 4 | C10: 22.06 | D10: 56.13 | E10: 1238.23 | F10: 227.53 | G10: 61.91 | H10: 0.2337530184 | I10: 948.79
A11: Total | D11: =SUM(D2:D10) -> 500.94 | E11: 11978.63 | F11: 2264.95 | G11: 598.93 | I11: =SUM(I2:I10) -> 9114.75
F13: Assumption Table (Formula Inputs)
F14: Fed Tax Rate | G14: State Tax Rate
F15: 0.2 | G15: 0.05
F16: Exemption amount
F17: 25.15
